bitfinex/quotes_BTCUSD_20251217
["timestamp","ask_amount","ask_price","bid_price","bid_amount"]
[1765965748701,0.00181454,86498.0,86497.0,0.13539216]
[1765965748901,0.52373375,86498.0,86497.0,0.002]
[1765965749108,0.52373375,86498.0,86497.0,0.005]
[1765965749824,0.52373375,86498.0,86497.0,0.002]
[1765965749981,0.52373375,86498.0,86497.0,0.004]
[1765965750182,0.52373375,86498.0,86497.0,0.07396]
[1765965750407,0.52373375,86498.0,86497.0,0.002]
[1765965750765,0.52373375,86498.0,86497.0,0.003]
[1765965751426,0.52373375,86498.0,86497.0,0.1199]
[1765965752209,0.53445222,86498.0,86497.0,0.1199]
[1765965753916,0.53445222,86498.0,86497.0,0.15618]
[1765965755197,0.53445222,86498.0,86497.0,0.08622]
[1765965756365,0.30323301,86498.0,86497.0,0.15457]
[1765965758711,0.53445222,86498.0,86497.0,0.003]
[1765965758959,0.55919491,86498.0,86497.0,0.003]
[1765965760442,0.58996907,86498.0,86497.0,0.003]
[1765965760846,0.55919491,86498.0,86497.0,0.003]
[1765965762921,0.55919491,86498.0,86497.0,0.001]
[1765965763136,0.5219313,86494.0,86493.0,0.11658]
[1765965763339,0.5219313,86494.0,86481.0,0.03628]
[1765965763340,0.23125932,86483.0,86476.0,0.06963]
[1765965763536,0.01071847,86482.0,86472.0,0.03687]
[1765965763745,0.01071847,86481.0,86480.0,0.11658]
[1765965764702,0.52197001,86479.0,86475.0,0.06963]
[1765965764986,0.32616116,86479.0,86478.0,0.15286]
[1765965765183,0.53268848,86479.0,86478.0,0.15286]
[1765965765341,0.58848735,86479.0,86478.0,0.15286]
[1765965765755,0.32616116,86479.0,86478.0,0.15286]
[1765965765951,0.30141847,86479.0,86478.0,0.15286]
[1765965766586,0.01156403,86475.0,86472.0,0.03687]
[1765965766883,0.01071847,86474.0,86473.0,0.15345]
[1765965767041,0.04177401,86474.0,86473.0,0.15345]
[1765965767244,0.01071847,86474.0,86473.0,0.17409487]
[1765965767596,0.01071847,86474.0,86473.0,0.19722347]
[1765965767857,0.03105554,86480.0,86479.0,0.04695]
[1765965768068,0.30898,86482.0,86481.0,0.15345]
[1765965768231,0.3197589,86482.0,86481.0,0.15345]
[1765965768640,0.0290589,86482.0,86481.0,0.15345]
[1765965768832,0.0107789,86482.0,86481.0,0.15345]
[1765965769868,0.0107789,86482.0,86481.0,0.15545]
[1765965770276,0.01208434,86482.0,86481.0,0.15545]
[1765965774153,0.04309291,86482.0,86481.0,0.15545]
[1765965776160,0.01208434,86482.0,86481.0,0.15545]
[1765965776573,0.03100088,86487.0,86486.0,0.04695]
[1765965776734,0.03100088,86487.0,86486.0,0.15345]
[1765965776929,0.26108546,86489.0,86487.0,0.06963]
[1765965777139,0.23124595,86488.0,86487.0,0.06963]
[1765965777435,0.23124595,86488.0,86487.0,0.11658]
[1765965778283,0.26108546,86489.0,86488.0,0.04695]
[1765965778479,0.26108546,86489.0,86488.0,0.11658]
[1765965778739,0.024802,86492.0,86491.0,0.11658]
[1765965778900,0.24277015,86502.0,86501.0,0.06963]
[1765965779107,0.24277015,86502.0,86500.0,0.03687]
[1765965779108,0.52191119,86501.0,86500.0,0.03687]
[1765965779314,0.01156082,86499.0,86495.0,0.1065]
[1765965779515,0.01156082,86499.0,86496.0,0.08412829]
[1765965779740,0.2907,86498.0,86496.0,0.08412829]
[1765965779941,0.2907,86498.0,86496.0,0.07612829]
[1765965780184,0.2907,86498.0,86496.0,0.00649829]
[1765965780388,0.2907,86496.0,86495.0,0.1065]
[1765965780851,0.2907,86496.0,86495.0,0.15345]
[1765965781402,0.01156096,86498.0,86495.0,0.15345]
[1765965781614,0.55828161,86499.0,86495.0,0.15345]
[1765965781828,0.315502,86499.0,86495.0,0.15345]
[1765965782038,0.2907,86499.0,86495.0,0.15345]
[1765965782247,0.001,86498.0,86495.0,0.17264329]
[1765965782452,0.2907,86501.0,86498.0,0.06963]
[1765965782653,0.2907,86501.0,86500.0,0.11558]
[1765965782824,0.2907,86501.0,86500.0,0.11358]
[1765965783234,0.00060468,86501.0,86500.0,0.13446944]
[1765965783437,0.00060468,86501.0,86500.0,0.11419287]
[1765965783958,0.00260468,86501.0,86500.0,0.11419287]
[1765965784164,0.00360468,86501.0,86500.0,0.11419287]
[1765965785223,0.00060468,86501.0,86500.0,0.11419287]
[1765965785925,0.52251587,86501.0,86500.0,0.00161287]
[1765965786139,0.01156203,86490.0,86482.0,0.06977]
[1765965786353,0.2907,86494.0,86482.0,0.06977]
[1765965786562,0.01156162,86493.0,86482.0,0.06977]
[1765965786776,0.01156162,86493.0,86479.0,0.023127]
[1765965786988,0.01156162,86493.0,86486.0,0.10664]
[1765965787197,0.32706336,86495.0,86486.0,0.10664]
[1765965787402,0.30226136,86495.0,86486.0,0.10664]
[1765965787617,0.2907,86491.0,86486.0,0.03687]
[1765965787815,0.2907,86491.0,86487.0,0.06977]
[1765965788438,0.2907,86491.0,86490.0,0.11877]
[1765965788637,0.0107731,86491.0,86490.0,0.11877]
[1765965788919,0.2907,86499.0,86498.0,0.11877]
[1765965789133,0.30147316,86499.0,86498.0,0.11877]
[1765965789786,0.0001131,86502.0,86501.0,0.11877]
[1765965790758,0.01088578,86502.0,86501.0,0.11877]
[1765965791124,0.0001131,86502.0,86501.0,0.11877]
[1765965791510,0.0001131,86502.0,86501.0,0.134099]
[1765965792629,0.0001131,86502.0,86501.0,0.11877]
[1765965793066,0.00074959,86502.0,86501.0,0.11977]
[1765965793445,0.00074959,86502.0,86501.0,0.05]
[1765965793651,0.00074959,86502.0,86501.0,0.051]
[1765965793856,0.00074959,86502.0,86501.0,0.12077]
[1765965798099,0.00074959,86502.0,86501.0,0.051]
[1765965798518,0.00074959,86502.0,86501.0,0.12077]
[1765965798969,0.00074959,86502.0,86501.0,0.002]
[1765965799367,0.01151181,86502.0,86501.0,0.002]
[1765965799548,0.24272033,86502.0,86501.0,0.002]
[1765965799749,0.01151181,86502.0,86501.0,0.002]
[1765965801172,0.00074959,86502.0,86501.0,0.002]
[1765965801377,0.23120457,86504.0,86501.0,0.002]
[1765965801762,0.23120585,86503.0,86501.0,0.002]
[1765965802206,0.23120852,86502.0,86501.0,0.002]
[1765965802406,0.23120585,86503.0,86501.0,0.002]
[1765965802615,0.01156015,86504.0,86501.0,0.001]
[1765965802776,0.24276729,86503.0,86501.0,0.001]
[1765965802971,0.24276729,86503.0,86502.0,0.04612]
[1765965803376,0.24276729,86503.0,86501.0,0.001]
[1765965803570,0.23120852,86502.0,86501.0,0.002]
[1765965803784,0.24276658,86503.0,86501.0,0.002]
[1765965804253,0.24276463,86504.0,86501.0,0.002]
[1765965804455,0.24276463,86504.0,86501.0,0.001]
[1765965804842,0.01156029,86503.0,86498.0,0.07201]
[1765965805049,0.24277385,86501.0,86497.0,0.03452]
[1765965805249,0.24277385,86501.0,86497.0,0.10653]
[1765965806025,0.01156055,86501.0,86498.0,0.07201]
[1765965807306,0.24277272,86501.0,86498.0,0.07201]
[1765965807507,0.24277272,86501.0,86498.0,0.001]
[1765965808140,0.24277272,86501.0,86498.0,0.002]
[1765965808368,0.24277272,86501.0,86498.0,0.07557]
[1765965808500,0.01156055,86501.0,86498.0,0.07557]
[1765965808741,0.2427719,86501.0,86498.0,0.07557]
[1765965808941,0.24276947,86502.0,86498.0,0.07557]
[1765965809138,0.2907,86502.0,86498.0,0.07557]
[1765965809789,0.30226042,86502.0,86498.0,0.07557]
[1765965810011,0.2907,86502.0,86498.0,0.07557]
[1765965810224,0.2907,86504.0,86503.0,0.10977]
[1765965810390,0.2907,86504.0,86503.0,0.15739]
[1765965810596,0.52190318,86504.0,86503.0,0.15739]
[1765965810800,0.54670319,86504.0,86503.0,0.15739]
[1765965811112,0.54670319,86504.0,86503.0,0.0362]
[1765965811264,0.24277259,86501.0,86498.0,0.002]
[1765965811465,0.24277259,86501.0,86498.0,0.001]
[1765965811774,0.24277259,86501.0,86498.0,0.07357]
[1765965811981,0.30226055,86501.0,86500.0,0.12119]
[1765965812375,0.2907,86501.0,86500.0,0.12119]
[1765965813345,0.30149342,86501.0,86500.0,0.12119]
[1765965813741,0.30149342,86501.0,86500.0,0.12219]
[1765965814162,0.30149342,86501.0,86500.0,0.12319]
[1765965815799,0.30149342,86501.0,86500.0,0.138961]
[1765965818506,0.30149342,86501.0,86500.0,0.14057387]
[1765965819225,0.01079342,86501.0,86500.0,0.14057387]
[1765965819473,0.00025455,86510.0,86509.0,0.15404]
[1765965821774,0.00025455,86510.0,86509.0,0.15565287]
[1765965821970,0.00025455,86510.0,86509.0,0.15953022]
[1765965822374,0.01105218,86510.0,86509.0,0.15953022]
[1765965822575,0.00025455,86510.0,86509.0,0.15953022]
[1765965822954,0.00025455,86510.0,86509.0,0.16053022]
[1765965824681,0.00025455,86510.0,86509.0,0.16153022]
[1765965827661,0.02480001,86526.0,86519.0,0.06888]
[1765965827868,0.0004,86528.0,86522.0,0.06888]
[1765965828130,0.00077775,86528.0,86522.0,0.06888]
[1765965828373,0.00077775,86528.0,86527.0,0.04815]
[1765965828592,0.00077775,86528.0,86527.0,0.11703]
[1765965829067,0.00077775,86528.0,86527.0,0.11603]
[1765965829308,0.00177775,86528.0,86527.0,0.12648858]
[1765965830269,0.00077775,86528.0,86527.0,0.12648858]
[1765965830987,0.00177775,86528.0,86527.0,0.12648858]
[1765965831413,0.00077775,86528.0,86527.0,0.12648858]
[1765965832325,0.00077775,86528.0,86527.0,0.10903]
[1765965833310,0.00077775,86528.0,86527.0,0.11064287]
[1765965833669,0.00135033,86528.0,86527.0,0.11064287]
[1765965834069,0.00135033,86528.0,86527.0,0.10903]
[1765965834511,0.00135033,86528.0,86527.0,0.11203]
[1765965834727,0.00135033,86528.0,86527.0,0.13191655]
[1765965835119,0.00135033,86528.0,86527.0,0.13091655]
[1765965835279,0.00135033,86528.0,86527.0,0.13191655]
[1765965835660,0.00135033,86528.0,86527.0,0.12891655]
[1765965835973,0.00135033,86528.0,86527.0,0.13091655]
[1765965836179,0.00135033,86528.0,86527.0,0.15403072]
[1765965836383,3.3e-07,86528.0,86527.0,0.33731359]
[1765965836592,3.3e-07,86528.0,86527.0,0.38995114]
[1765965837415,3.3e-07,86528.0,86527.0,0.43796953]
[1765965837615,3.3e-07,86528.0,86527.0,0.43696953]
[1765965837820,3.3e-07,86528.0,86527.0,0.44096953]
[1765965838371,3.3e-07,86528.0,86527.0,0.43996953]
[1765965838600,3.3e-07,86528.0,86527.0,0.73566953]
[1765965839145,3.3e-07,86528.0,86527.0,0.73066953]
[1765965839574,3.3e-07,86528.0,86527.0,0.72766953]
[1765965840000,3.3e-07,86528.0,86527.0,0.73166953]
[1765965840250,3.3e-07,86528.0,86527.0,0.72766953]
[1765965840573,3.3e-07,86528.0,86527.0,0.73166953]
[1765965840991,3.3e-07,86528.0,86527.0,0.73566953]
[1765965841193,3.3e-07,86528.0,86527.0,0.77040254]
[1765965841396,3.3e-07,86528.0,86527.0,0.76640254]
[1765965841593,3.3e-07,86528.0,86527.0,0.88840254]
[1765965841814,3.3e-07,86528.0,86527.0,0.87512254]
[1765965842045,3.3e-07,86528.0,86527.0,0.89340254]
[1765965842224,3.3e-07,86528.0,86527.0,0.88840254]
[1765965842431,3.3e-07,86528.0,86527.0,0.91758443]
[1765965842661,0.00100033,86528.0,86527.0,0.75012254]
[1765965843005,0.00100033,86528.0,86527.0,0.76840254]
[1765965843658,0.00100033,86528.0,86527.0,0.77340254]
[1765965844038,3.3e-07,86528.0,86527.0,0.69852254]
[1765965844239,0.00100033,86528.0,86527.0,0.69952254]
[1765965844437,0.00100033,86528.0,86527.0,0.77402254]
[1765965844660,0.00100033,86528.0,86527.0,0.77902254]
[1765965844862,3.3e-07,86528.0,86527.0,0.69852254]
[1765965845274,0.00100033,86528.0,86527.0,0.70452254]
[1765965845606,0.00100033,86528.0,86527.0,0.77902254]
[1765965849071,0.00100033,86528.0,86527.0,0.76074254]
[1765965849270,0.00100033,86528.0,86527.0,0.77902254]
[1765965850872,0.00100033,86528.0,86527.0,0.79152323]
[1765965852169,0.00100033,86528.0,86527.0,0.77324323]
[1765965852572,0.00100033,86528.0,86527.0,0.79152323]
[1765965857568,0.00100033,86528.0,86527.0,0.26968151]
[1765965857775,0.00100033,86528.0,86527.0,0.25140151]
[1765965857975,0.00100033,86528.0,86527.0,0.26968151]
[1765965858316,0.00100033,86528.0,86527.0,0.50082323]
[1765965859658,0.00100033,86528.0,86527.0,0.25140151]
[1765965859872,0.00100033,86528.0,86527.0,0.26968151]
[1765965860487,3.3e-07,86528.0,86527.0,0.18918151]
[1765965860724,3.3e-07,86528.0,86527.0,0.21229568]
[1765965860965,3.3e-07,86528.0,86527.0,0.12588312]
[1765965861158,3.3e-07,86528.0,86527.0,0.10943011]
[1765965861358,3.3e-07,86528.0,86527.0,0.06128011]
[1765965861802,3.3e-07,86528.0,86527.0,0.05628011]
[1765965861943,3.3e-07,86528.0,86527.0,0.05128011]
[1765965862346,3.3e-07,86528.0,86527.0,0.05528011]
[1765965862663,3.3e-07,86528.0,86527.0,0.07292724]
[1765965862884,3.3e-07,86528.0,86527.0,0.07492724]
[1765965863262,3.3e-07,86528.0,86527.0,0.07892724]
[1765965864002,3.3e-07,86528.0,86527.0,0.07492724]
[1765965864206,3.3e-07,86528.0,86527.0,0.07892724]
[1765965868585,3.3e-07,86528.0,86527.0,0.05728011]
[1765965869160,3.3e-07,86528.0,86527.0,0.07825149]
[1765965869386,3.3e-07,86528.0,86527.0,0.07425149]
[1765965869589,3.3e-07,86528.0,86527.0,0.07225149]
[1765965869793,3.3e-07,86528.0,86527.0,0.07525149]
[1765965869991,3.3e-07,86528.0,86527.0,0.07725149]
[1765965872956,0.0247777,86549.0,86528.0,0.03641]
[1765965873154,0.0001133,86549.0,86530.0,0.0745]
[1765965873356,0.024891,86549.0,86532.0,0.0745]
[1765965876391,0.024891,86549.0,86532.0,0.0755]
[1765965878587,0.00025443,86536.0,86535.0,0.15697]
[1765965879925,0.00025443,86536.0,86535.0,0.15897]
[1765965880140,0.00025443,86536.0,86535.0,0.17717836]
[1765965880987,0.00025443,86536.0,86535.0,0.17817836]
[1765965883223,0.00025443,86536.0,86535.0,0.03676]
[1765965884817,0.00025443,86536.0,86535.0,0.15997]
[1765965887271,0.00025443,86536.0,86535.0,0.1846949]
[1765965887472,0.00025443,86536.0,86535.0,0.41581525]
[1765965887715,0.00025443,86536.0,86535.0,0.39270322]
[1765965887846,0.00025443,86536.0,86535.0,0.508164]
[1765965888587,0.00025443,86536.0,86535.0,0.27704365]
[1765965889138,0.00025443,86536.0,86535.0,0.508164]
[1765965890249,0.00025443,86536.0,86535.0,0.27704365]
[1765965890591,0.00025443,86536.0,86535.0,0.508164]
[1765965891245,4.43e-06,86536.0,86535.0,0.84888239]
[1765965892077,4.43e-06,86536.0,86535.0,0.84688239]
[1765965892596,0.00100443,86536.0,86535.0,0.85188239]
[1765965893221,0.00100443,86536.0,86535.0,0.85088239]
[1765965893736,0.00100443,86536.0,86535.0,0.85488239]
[1765965895906,0.00100443,86536.0,86535.0,0.86566249]
[1765965901367,0.00100443,86536.0,86535.0,0.63454214]
[1765965901570,0.00100443,86536.0,86535.0,0.46906297]
[1765965901774,0.00100443,86536.0,86535.0,0.18586287]
[1765965901976,0.00100443,86536.0,86535.0,0.49011364]
[1765965902132,0.00100443,86536.0,86535.0,0.46700161]
[1765965902555,0.00100443,86536.0,86535.0,0.47776957]
[1765965902757,0.00100443,86536.0,86535.0,0.59323035]
[1765965902936,0.00100443,86536.0,86535.0,0.29381161]
[1765965903163,0.00100443,86536.0,86535.0,0.19663083]
[1765965903932,0.00100443,86536.0,86535.0,0.21974286]
[1765965904056,0.00100443,86536.0,86535.0,0.19663083]
[1765965905053,0.00100443,86536.0,86535.0,0.21974286]
[1765965905367,0.00100443,86536.0,86535.0,0.19663083]
[1765965905593,0.00100443,86536.0,86535.0,0.2890997]
[1765965905769,0.00100443,86536.0,86535.0,0.26598767]
[1765965906771,0.00100443,86536.0,86535.0,0.54712641]
[1765965907025,0.00100443,86536.0,86535.0,0.31600606]
[1765965909845,0.00100443,86536.0,86535.0,0.29772606]
[1765965910045,0.00100443,86536.0,86535.0,0.31600606]
[1765965911117,0.00100443,86536.0,86535.0,0.24664922]
[1765965912692,0.00100443,86536.0,86535.0,0.17835083]
[1765965912894,0.00100443,86536.0,86535.0,0.18586287]
[1765965913091,0.00100443,86536.0,86535.0,0.16758287]
[1765965913415,0.00100443,86536.0,86535.0,0.18586287]
[1765965913612,0.00100443,86536.0,86535.0,0.20676052]
[1765965913760,4.43e-06,86536.0,86535.0,0.12451052]
[1765965913973,4.43e-06,86536.0,86535.0,0.07455052]
[1765965914180,4.43e-06,86536.0,86535.0,0.05565287]
[1765965914614,4.43e-06,86536.0,86535.0,0.05865287]
[1765965917222,4.43e-06,86536.0,86535.0,0.04037287]
[1765965917428,4.43e-06,86536.0,86535.0,0.05865287]
[1765965919902,4.43e-06,86536.0,86535.0,0.0817649]
[1765965920101,4.43e-06,86536.0,86535.0,0.11536637]
[1765965922274,4.43e-06,86536.0,86535.0,0.09708637]
[1765965922476,4.43e-06,86536.0,86535.0,0.11536637]
[1765965923387,4.43e-06,86536.0,86535.0,0.0817649]
[1765965923595,4.43e-06,86536.0,86535.0,0.05865287]
[1765965925905,0.12662279,86559.0,86549.0,0.03403]
[1765965926110,0.23105877,86559.0,86549.0,0.03403]
[1765965926317,0.24261158,86559.0,86549.0,0.03403]
[1765965926519,0.00044516,86550.0,86549.0,0.10769]
[1765965926929,0.00044516,86550.0,86549.0,0.03403]
[1765965927338,0.00044516,86550.0,86549.0,0.15486]
[1765965927756,0.00044516,86550.0,86549.0,0.0812]
[1765965927957,0.00044516,86550.0,86549.0,0.0822]
[1765965928168,0.00044516,86550.0,86549.0,0.15686]
[1765965932854,0.33897294,86560.0,86549.0,0.15686]
[1765965933056,0.33897294,86560.0,86549.0,0.0832]
[1765965933263,0.33897294,86560.0,86549.0,0.03603]
[1765965933661,0.33897294,86560.0,86549.0,0.03403]
[1765965933903,0.35052562,86560.0,86549.0,0.03403]
[1765965934111,0.33897294,86560.0,86549.0,0.03403]
[1765965934404,0.35052562,86560.0,86549.0,0.03403]
[1765965934810,0.01155281,86559.0,86549.0,0.03403]
[1765965935012,0.35052562,86560.0,86549.0,0.03403]
[1765965936293,0.33897294,86560.0,86549.0,0.03403]
[1765965937081,0.35052562,86560.0,86549.0,0.03403]
[1765965937331,0.33897294,86560.0,86549.0,0.03403]
[1765965937728,0.01080708,86559.0,86549.0,0.03403]
[1765965938156,0.01080708,86559.0,86544.0,0.03403]
[1765965938333,0.01155294,86558.0,86544.0,0.03403]
[1765965938530,0.01080708,86557.0,86544.0,0.10649]
[1765965938735,0.02236016,86557.0,86544.0,0.10649]
[1765965939054,0.01080708,86556.0,86544.0,0.10649]
[1765965939388,0.02236029,86556.0,86544.0,0.10649]
[1765965939580,0.01080708,86555.0,86544.0,0.10649]
[1765965939869,0.01080708,86554.0,86544.0,0.10649]
[1765965940054,0.01080708,86553.0,86544.0,0.10649]
[1765965940249,0.01080708,86552.0,86544.0,0.10649]
[1765965940448,0.01080708,86551.0,86544.0,0.10649]
[1765965940676,0.2428666,86558.0,86544.0,0.10649]
[1765965940677,0.01080708,86550.0,86544.0,0.10649]
[1765965940872,0.01080708,86549.0,86545.0,0.07246]
[1765965941087,0.01080708,86548.0,86545.0,0.07246]
[1765965941312,0.01080708,86547.0,86545.0,0.07246]
[1765965941609,0.01080708,86546.0,86545.0,0.07246]
[1765965942225,0.01080708,86557.0,86545.0,0.07246]
[1765965942427,0.01180727,86558.0,86545.0,0.086512]
[1765965942428,0.01080708,86556.0,86545.0,0.086512]
[1765965942628,0.01080708,86555.0,86545.0,0.086512]
[1765965942858,0.00025433,86558.0,86545.0,0.086512]
[1765965942859,0.01080708,86554.0,86545.0,0.086512]
[1765965943065,0.01080708,86553.0,86545.0,0.086512]
[1765965943242,0.01080708,86552.0,86545.0,0.07246]
[1765965943420,0.01080708,86551.0,86545.0,0.07246]
[1765965943602,0.01080708,86550.0,86545.0,0.07246]
[1765965943807,0.01080708,86549.0,86545.0,0.07346]
[1765965944154,0.01080708,86548.0,86545.0,0.07346]
[1765965944351,0.01080708,86547.0,86545.0,0.07346]
[1765965944580,0.03111095,86556.0,86546.0,0.11892]
[1765965944715,0.01081573,86555.0,86546.0,0.11892]
[1765965946895,0.06330401,86558.0,86546.0,0.11892]
[1765965947103,0.26750894,86559.0,86546.0,0.11992]
[1765965947523,0.01155281,86559.0,86546.0,0.11992]
[1765965947696,0.02489957,86559.0,86546.0,0.11892]
[1765965949011,0.36387251,86560.0,86546.0,0.11892]
[1765965949315,0.31559957,86561.0,86546.0,0.137618]
[1765965949537,0.33897294,86560.0,86546.0,0.137618]
[1765965951546,0.33897294,86560.0,86548.0,0.07246]
[1765965952877,0.33897294,86560.0,86551.0,0.10655]
[1765965953493,0.02489957,86564.0,86552.0,0.07246]
[1765965953638,0.33897294,86561.0,86552.0,0.07246]
[1765965954312,0.33897294,86561.0,86551.0,0.03409]
[1765965954859,0.62967294,86561.0,86551.0,0.03409]
[1765965955053,0.02489957,86560.0,86551.0,0.03409]
[1765965957253,0.02489957,86560.0,86552.0,0.0125248]
[1765965957459,0.2907,86561.0,86560.0,0.07246]
[1765965958020,0.2907,86561.0,86559.0,0.03409]
[1765965958216,0.2907,86561.0,86559.0,0.10655]
[1765965958441,0.0002543,86566.0,86565.0,0.11892]
[1765965958641,0.0002543,86566.0,86565.0,0.12053287]
[1765965959837,0.0002543,86566.0,86565.0,0.12253287]
[1765965960216,0.0002543,86566.0,86565.0,0.12353287]
[1765965960419,0.0002543,86566.0,86565.0,0.14723542]
[1765965960776,0.0002543,86566.0,86565.0,0.15804983]
[1765965960989,0.0002543,86566.0,86565.0,0.18115385]
[1765965961576,0.0002543,86566.0,86565.0,0.4121941]
[1765965961840,0.0002543,86566.0,86565.0,0.15804983]
[1765965962043,0.0002543,86566.0,86565.0,0.4121941]
[1765965962317,0.0002543,86566.0,86565.0,0.38909008]
[1765965964017,0.0002543,86566.0,86565.0,0.43910847]
[1765965964981,0.0002543,86566.0,86565.0,0.43810847]
[1765965965182,0.0002543,86566.0,86565.0,0.43910847]
[1765965965598,0.0002543,86566.0,86565.0,0.15904983]
[1765965966452,0.0002543,86566.0,86565.0,0.4181941]
[1765965966659,0.0002543,86566.0,86565.0,0.39109008]
[1765965967033,0.0002543,86566.0,86565.0,0.38609008]
[1765965967200,0.0002543,86566.0,86565.0,0.39009008]
[1765965967618,0.0002543,86566.0,86565.0,0.44010847]
[1765965968056,0.0002543,86566.0,86565.0,0.39009008]
[1765965968258,0.0002543,86566.0,86565.0,0.39309008]
[1765965970279,0.0002543,86566.0,86565.0,0.16204983]
[1765965970484,0.0002543,86566.0,86565.0,0.18515385]
[1765965970739,0.0002543,86566.0,86565.0,0.4161941]
[1765965970934,0.0002543,86566.0,86565.0,0.39309008]
[1765965973341,0.0002543,86566.0,86565.0,0.16204983]
[1765965973494,0.0002543,86566.0,86565.0,0.18515385]
[1765965974342,0.0002543,86566.0,86565.0,0.16204983]
[1765965975006,0.0002543,86566.0,86565.0,0.007]
[1765965975412,0.0021343,86566.0,86565.0,0.007]
[1765965975992,0.0021343,86566.0,86559.0,0.06882345]
[1765965976193,0.0021343,86566.0,86565.0,0.003]
[1765965978159,0.0021343,86566.0,86565.0,0.002]
[1765965978501,0.0021343,86566.0,86565.0,0.001]
[1765965979000,0.0021343,86566.0,86565.0,0.002]
[1765965981306,0.01155214,86564.0,86550.0,0.0713]
[1765965981491,0.33874641,86561.0,86553.0,0.03473699]
[1765965981824,0.33874641,86561.0,86550.0,0.0713]
[1765965981982,0.33874641,86561.0,86552.0,0.03473699]
[1765965983433,0.0021343,86566.0,86553.0,0.0103057]
[1765965983652,0.0021343,86566.0,86553.0,0.0113057]
[1765965983849,0.0021343,86566.0,86553.0,0.001]
[1765965984815,0.0021343,86566.0,86552.0,0.03473699]
[1765965985013,0.0021343,86566.0,86553.0,0.001]
[1765965985598,0.0021343,86566.0,86552.0,0.03473699]
[1765965985848,0.0021343,86566.0,86552.0,0.03573699]
[1765965987109,0.23104636,86563.0,86552.0,0.03573699]
[1765965987293,0.33874641,86562.0,86552.0,0.001]
[1765965987549,0.01155268,86560.0,86552.0,0.001]
[1765965987755,0.01155268,86560.0,86543.0,0.03423]
[1765965987756,0.01155334,86555.0,86543.0,0.03423]
[1765965987958,0.33874641,86553.0,86536.0,0.03423]
[1765965988161,0.33874641,86550.0,86537.0,0.013976]
[1765965988748,0.33874641,86550.0,86537.0,0.01558887]
[1765965988952,0.33874641,86550.0,86537.0,0.08688887]
[1765965989159,0.24261231,86558.0,86537.0,0.08688887]
[1765965989314,0.33874641,86550.0,86537.0,0.07291287]
[1765965989519,0.33874641,86550.0,86537.0,0.07591287]
[1765965989748,0.33874641,86550.0,86537.0,0.07791287]
[1765965989943,0.33874641,86550.0,86537.0,0.07591287]
[1765965990158,0.33874641,86550.0,86537.0,0.07291287]
[1765965992063,0.33874641,86550.0,86537.0,0.07391287]
[1765965992446,0.33874641,86550.0,86537.0,0.07491287]
[1765965992950,0.49260872,86560.0,86537.0,0.07491287]
[1765965993264,0.23103058,86569.0,86537.0,0.07491287]
[1765965993265,0.01368617,86566.0,86543.0,0.0713]
[1765965993482,0.30146787,86565.0,86543.0,0.07291287]
[1765965993689,0.01076787,86564.0,86543.0,0.07291287]
[1765965994678,0.01076787,86563.0,86543.0,0.07291287]
[1765965994878,0.01076787,86562.0,86543.0,0.07291287]
[1765965995078,0.002,86560.0,86543.0,0.07291287]
[1765965995545,0.01076851,86565.0,86543.0,0.07291287]
[1765965995884,0.002,86563.0,86543.0,0.07291287]
[1765965996079,0.001,86563.0,86543.0,0.07291287]
[1765965996286,0.01076851,86565.0,86543.0,0.07291287]
[1765965996487,0.01155334,86555.0,86543.0,0.07291287]
[1765965996671,0.01155308,86557.0,86543.0,0.07291287]
[1765965997186,0.01155321,86556.0,86543.0,0.07291287]
[1765965997588,0.01155308,86557.0,86543.0,0.07291287]
[1765965997811,0.01155281,86559.0,86543.0,0.07291287]
[1765965998031,0.56980076,86560.0,86543.0,0.07291287]
[1765965998252,0.58135273,86560.0,86543.0,0.07291287]
[1765965998474,0.01077091,86559.0,86543.0,0.07291287]
[1765965998696,0.35029909,86560.0,86543.0,0.07391287]
[1765965998920,0.01077072,86559.0,86543.0,0.07391287]
[1765965999137,0.24182738,86559.0,86543.0,0.07291287]
[1765965999356,0.24260947,86559.0,86543.0,0.07291287]
[1765966000022,0.33874641,86560.0,86543.0,0.07291287]
[1765966000238,0.35029909,86560.0,86543.0,0.07291287]
[1765966000464,0.010775,86559.0,86543.0,0.07291287]
[1765966002287,0.02232781,86559.0,86543.0,0.07291287]
[1765966002487,0.010775,86558.0,86543.0,0.07291287]
[1765966002692,0.010775,86557.0,86543.0,0.07291287]
[1765966002910,0.60619527,86560.0,86543.0,0.07291287]
[1765966003300,0.01078231,86559.0,86543.0,0.07291287]
[1765966003482,0.02233512,86559.0,86543.0,0.07291287]
[1765966003708,0.23106274,86557.0,86543.0,0.07291287]
[1765966003863,0.01078231,86556.0,86543.0,0.07291287]
[1765966004246,0.33874641,86553.0,86543.0,0.00161287]
[1765966004451,0.01078231,86552.0,86543.0,0.00161287]
[1765966004674,0.01078231,86552.0,86543.0,0.07145287]
[1765966005291,0.01155321,86556.0,86543.0,0.07145287]
[1765966005510,0.01079459,86555.0,86543.0,0.07145287]
[1765966005826,0.01079459,86555.0,86543.0,0.07245287]
[1765966006036,0.01079459,86555.0,86543.0,0.07345287]
[1765966006272,0.01079459,86555.0,86543.0,0.07245287]
[1765966006439,0.24261515,86557.0,86543.0,0.07245287]
[1765966006440,0.01079459,86554.0,86543.0,0.07245287]
[1765966006679,0.24261515,86557.0,86543.0,0.07145287]
[1765966006680,0.01079459,86553.0,86543.0,0.07145287]
[1765966006881,0.01079459,86552.0,86543.0,0.07245287]
[1765966007085,0.01155294,86558.0,86543.0,0.07245287]
[1765966007262,0.01079604,86557.0,86543.0,0.07245287]
[1765966007816,0.01079604,86556.0,86543.0,0.07245287]
[1765966007944,0.01079604,86555.0,86543.0,0.07245287]
[1765966008145,0.01079604,86554.0,86543.0,0.07145287]
[1765966008480,0.01079604,86553.0,86543.0,0.07245287]
[1765966008692,0.01079604,86552.0,86543.0,0.07245287]
[1765966008923,0.01155308,86557.0,86543.0,0.07245287]
[1765966009124,0.01079724,86556.0,86543.0,0.07145287]
[1765966009280,0.01079724,86556.0,86543.0,0.07345287]
[1765966009618,0.01079724,86556.0,86543.0,0.07245287]
[1765966009860,0.26746589,86559.0,86543.0,0.07145287]
[1765966009861,0.01079724,86555.0,86543.0,0.07145287]
[1765966010039,0.01079724,86554.0,86543.0,0.07245287]
[1765966010350,0.01079724,86553.0,86543.0,0.07245287]
[1765966010534,0.01079724,86552.0,86543.0,0.07245287]
[1765966010689,0.01079724,86551.0,86543.0,0.07245287]
[1765966011048,0.26746589,86559.0,86543.0,0.07245287]
[1765966011049,0.01155294,86558.0,86543.0,0.07245287]
[1765966011262,0.0107996,86557.0,86543.0,0.07145287]
[1765966011463,0.0107996,86556.0,86543.0,0.07145287]